bitfinex/quotes_BTCUSD_20230109
["timestamp","ask_amount","ask_price","bid_price","bid_amount"]
[1673254561542,6.47169731,17230.0,17229.0,0.00139734]
[1673254561796,6.47169731,17230.0,17229.0,3.4e-07]
[1673254562032,1.356348,17229.0,17228.0,0.00623063]
[1673254562308,5.37944443,17229.0,17228.0,0.00623063]
[1673254562545,6.42343825,17229.0,17228.0,0.00623063]
[1673254562806,6.73158657,17229.0,17228.0,0.00623063]
[1673254563306,6.86671523,17229.0,17228.0,0.00723063]
[1673254563557,6.48886197,17229.0,17228.0,0.00723063]
[1673254563804,5.32802997,17229.0,17228.0,0.00723063]
[1673254564059,6.48886197,17229.0,17228.0,0.00723063]
[1673254564308,6.12352217,17229.0,17228.0,0.00723063]
[1673254564803,6.01102217,17229.0,17228.0,0.00723063]
[1673254565068,6.31821365,17229.0,17228.0,0.00723063]
[1673254565822,6.59132821,17229.0,17228.0,0.00723063]
[1673254566597,6.23237913,17229.0,17228.0,0.00723063]
[1673254567094,6.59132821,17229.0,17228.0,0.00723063]
[1673254567349,6.59124322,17229.0,17228.0,0.00723063]
[1673254568328,6.82900231,17229.0,17228.0,6.3e-07]
[1673254568591,6.84666629,17229.0,17227.0,0.00587105]
[1673254568843,3.27162297,17228.0,17227.0,0.00587105]
[1673254569086,4.43252297,17228.0,17227.0,0.00587105]
[1673254569343,4.73971445,17228.0,17227.0,0.00587105]
[1673254569592,4.8003394,17228.0,17227.0,0.00587105]
[1673254569837,5.0503394,17228.0,17227.0,0.00687105]
[1673254570827,5.0503394,17228.0,17227.0,0.00587105]
[1673254571071,5.1503394,17228.0,17227.0,0.00687105]
[1673254571553,5.2863394,17228.0,17227.0,0.00787105]
[1673254573305,5.55945874,17228.0,17227.0,0.00787105]
[1673254578278,5.2863394,17228.0,17227.0,0.00787105]
[1673254578512,5.5594603,17228.0,17227.0,0.00787105]
[1673254579498,4.70281492,17228.0,17227.0,0.00787105]
[1673254580247,5.55938581,17228.0,17227.0,0.00787105]
[1673254580482,4.99525227,17228.0,17227.0,0.00787105]
[1673254581963,4.70281492,17228.0,17227.0,0.00787105]
[1673254582754,5.25932147,17228.0,17227.0,0.00787105]
[1673254583057,5.31746979,17228.0,17227.0,0.00787105]
[1673254583569,5.04434889,17228.0,17227.0,0.00787105]
[1673254584311,5.34434889,17228.0,17227.0,0.00787105]
[1673254584558,4.67547176,17228.0,17227.0,0.00787105]
[1673254584799,3.17427373,17228.0,17227.0,0.00787105]
[1673254585046,2.73052127,17228.0,17227.0,0.00787105]
[1673254585565,2.66139632,17228.0,17227.0,0.00787105]
[1673254585809,2.603248,17228.0,17227.0,0.00787105]
[1673254586815,3.19048521,17228.0,17227.0,0.00787105]
[1673254587058,2.57948521,17228.0,17227.0,0.00787105]
[1673254587542,2.63371521,17228.0,17227.0,0.00587105]
[1673254587789,2.046478,17228.0,17227.0,0.00787105]
[1673254588029,2.046478,17228.0,17227.0,0.00587105]
[1673254588277,2.25751643,17228.0,17227.0,0.00787105]
[1673254588525,2.39351643,17228.0,17227.0,0.00787105]
[1673254588776,2.69351643,17228.0,17227.0,0.00787105]
[1673254589017,3.28073843,17228.0,17227.0,0.00787105]
[1673254589561,3.28074303,17228.0,17227.0,0.00787105]
[1673254590570,2.75166475,17228.0,17227.0,0.00787105]
[1673254590813,2.69351643,17228.0,17227.0,0.00787105]
[1673254592049,3.30451643,17228.0,17227.0,0.00787105]
[1673254592551,3.74780867,17228.0,17227.0,0.00787105]
[1673254593301,3.16851643,17228.0,17227.0,0.00587105]
[1673254593542,3.30451643,17228.0,17227.0,0.00787105]
[1673254595345,3.74780792,17228.0,17227.0,0.00787105]
[1673254596306,3.45757792,17228.0,17227.0,0.00787105]
[1673254596550,3.74786792,17228.0,17227.0,0.00787105]
[1673254597079,3.75636792,17228.0,17227.0,0.00787105]
[1673254597807,3.75635792,17228.0,17227.0,0.00787105]
[1673254598551,3.12576949,17228.0,17227.0,0.00787105]
[1673254599539,3.12568556,17228.0,17227.0,0.00787105]
[1673254603521,3.43287704,17228.0,17227.0,0.00787105]
[1673254609542,3.49350199,17228.0,17227.0,0.00787105]
[1673254610541,4.35000854,17228.0,17227.0,0.00787105]
[1673254610790,4.94388567,17228.0,17227.0,0.00787105]
[1673254611777,5.27514217,17228.0,17227.0,0.00787105]
[1673254615428,5.27517217,17228.0,17227.0,0.00787105]
[1673254615949,5.44367217,17228.0,17227.0,0.00787105]
[1673254616712,5.46561416,17228.0,17227.0,0.00787105]
[1673254616975,5.73872942,17228.0,17227.0,0.00787105]
[1673254617244,5.44367925,17228.0,17227.0,0.00787105]
[1673254617486,4.5871727,17228.0,17227.0,0.00787105]
[1673254618739,4.8820673,17228.0,17227.0,0.00787105]
[1673254618970,4.5871727,17228.0,17227.0,0.00787105]
[1673254619454,4.88206721,17228.0,17227.0,0.00787105]
[1673254620457,5.05076721,17228.0,17227.0,0.00787105]
[1673254622177,4.77765195,17228.0,17227.0,0.00787105]
[1673254622428,5.0507732,17228.0,17227.0,0.00787105]
[1673254622674,5.0507732,17228.0,17227.0,0.00780483]
[1673254622913,5.42233229,17228.0,17227.0,0.00780483]
[1673254623411,5.0507732,17228.0,17227.0,0.00780483]
[1673254623722,4.75587869,17228.0,17227.0,0.00780483]
[1673254624693,5.05088626,17228.0,17227.0,0.00780483]
[1673254624935,5.05090209,17228.0,17227.0,0.00780483]
[1673254625422,5.42246118,17228.0,17227.0,0.00780483]
[1673254626689,5.12743778,17228.0,17227.0,0.00780483]
[1673254626940,5.98424463,17228.0,17227.0,0.00780483]
[1673254627181,5.33956429,17228.0,17227.0,0.00780483]
[1673254627737,4.7558744,17228.0,17227.0,0.00780483]
[1673254628462,4.7558744,17228.0,17227.0,0.00280483]
[1673254630223,5.13407695,17228.0,17227.0,0.00280483]
[1673254631204,5.42896613,17228.0,17227.0,0.00280483]
[1673254631461,5.61289409,17228.0,17227.0,0.00280483]
[1673254632463,5.01901696,17228.0,17227.0,0.00280483]
[1673254632712,4.7459,17228.0,17227.0,0.00280483]
[1673254633221,2.93590883,17228.0,17227.0,0.00280483]
[1673254634715,3.23590883,17228.0,17227.0,0.00280483]
[1673254634950,3.24440883,17228.0,17227.0,0.00280483]
[1673254636891,4.10142852,17228.0,17227.0,0.00280483]
[1673254637153,4.64453797,17228.0,17227.0,0.00280483]
[1673254640151,5.64453797,17228.0,17227.0,0.00280483]
[1673254640883,5.50853797,17228.0,17227.0,0.00080483]
[1673254641136,5.64453797,17228.0,17227.0,0.00280483]
[1673254641622,5.10142852,17228.0,17227.0,0.00280483]
[1673254642394,4.96542852,17228.0,17227.0,0.00080483]
[1673254642648,5.10242852,17228.0,17227.0,0.00280483]
[1673254642885,4.96542852,17228.0,17227.0,0.00080483]
[1673254643127,5.10142852,17228.0,17227.0,0.00280483]
[1673254643629,5.55930565,17228.0,17227.0,0.00080483]
[1673254643881,5.69630565,17228.0,17227.0,0.00280483]
[1673254644117,5.55930565,17228.0,17227.0,0.00080483]
[1673254644331,5.69530565,17228.0,17227.0,0.00280483]
[1673254644857,5.63715733,17228.0,17227.0,0.00280483]
[1673254645629,5.50115733,17228.0,17227.0,0.00080483]
[1673254646367,3.05026051,17228.0,17227.0,0.00080483]
[1673254646621,2.63071051,17228.0,17227.0,0.00080483]
[1673254646880,2.76771051,17228.0,17227.0,0.00280483]
[1673254647126,3.01771051,17228.0,17227.0,0.00280483]
[1673254647380,3.01671051,17228.0,17227.0,0.00080483]
[1673254648622,3.01771051,17228.0,17227.0,0.00280483]
[1673254648869,2.88071051,17228.0,17227.0,0.00080483]
[1673254649862,3.01771051,17228.0,17227.0,0.00080483]
[1673254650370,3.01771051,17228.0,17227.0,0.00280483]
[1673254650619,3.01771051,17228.0,17227.0,0.00080483]
[1673254651371,3.15471051,17228.0,17227.0,0.00280483]
[1673254651611,3.15471051,17228.0,17227.0,0.00080483]
[1673254651612,2.37679407,17228.0,17227.0,0.00080483]
[1673254652088,2.51279407,17228.0,17227.0,0.00280483]
[1673254652366,2.9562339,17228.0,17227.0,0.00280483]
[1673254652612,3.0922339,17228.0,17227.0,0.00480483]
[1673254652860,2.8202339,17228.0,17227.0,0.00080483]
[1673254653126,2.8202839,17228.0,17227.0,0.00080483]
[1673254653371,3.17743579,17228.0,17227.0,0.00080483]
[1673254654382,3.4874557,17228.0,17227.0,0.00080483]
[1673254654629,4.48047539,17228.0,17227.0,0.00280483]
[1673254654885,5.54110034,17228.0,17227.0,0.00280483]
[1673254655142,5.40510034,17228.0,17227.0,0.00080483]
[1673254655393,5.54110034,17228.0,17227.0,0.00280483]
[1673254655639,5.40510034,17228.0,17227.0,0.00080483]
[1673254655888,5.70840034,17228.0,17227.0,0.00280483]
[1673254656139,5.70840034,17228.0,17227.0,0.00080483]
[1673254656395,5.84440034,17228.0,17227.0,0.00280483]
[1673254657392,5.57240034,17228.0,17227.0,0.00080483]
[1673254657896,5.21524845,17228.0,17227.0,0.00080483]
[1673254658113,5.35124845,17228.0,17227.0,0.00080483]
[1673254658405,5.21524845,17228.0,17227.0,0.00080483]
[1673254658742,5.35124845,17228.0,17227.0,0.00280483]
[1673254658929,5.21513971,17228.0,17227.0,0.00080483]
[1673254660464,4.9051198,17228.0,17227.0,0.00080483]
[1673254661285,4.18410011,17228.0,17227.0,0.00280483]
[1673254661523,4.04810011,17228.0,17227.0,0.00080483]
[1673254661764,4.18410011,17228.0,17227.0,0.00280483]
[1673254662508,5.19742751,17228.0,17227.0,0.00280483]
[1673254662749,5.25557583,17228.0,17227.0,0.00280483]
[1673254664534,5.25559583,17228.0,17227.0,0.00280483]
[1673254665786,5.08829583,17228.0,17227.0,0.00280483]
[1673254667028,5.08879318,17228.0,17227.0,0.00280483]
[1673254669274,4.81642318,17228.0,17227.0,0.00280483]
[1673254669772,3.90075782,17228.0,17227.0,0.00280483]
[1673254671033,4.17312782,17228.0,17227.0,0.00280483]
[1673254673317,5.030806,17228.0,17227.0,0.00280483]
[1673254673557,5.03080891,17228.0,17227.0,0.00280483]
[1673254673808,4.17312782,17228.0,17227.0,0.00280483]
[1673254674068,5.03081706,17228.0,17227.0,0.00280483]
[1673254674590,4.17312782,17228.0,17227.0,0.00280483]
[1673254676080,5.03081171,17228.0,17227.0,0.00280483]
[1673254678075,4.17312782,17228.0,17227.0,0.00280483]
[1673254679705,5.03079544,17228.0,17227.0,0.00280483]
[1673254679953,4.17312782,17228.0,17227.0,0.00280483]
[1673254680502,4.48314773,17228.0,17227.0,0.00280483]
[1673254681229,5.34081528,17228.0,17227.0,0.00280483]
[1673254682952,5.34081528,17228.0,17227.0,0.0027027]
[1673254683205,5.18450757,17228.0,17227.0,0.0027027]
[1673254684952,4.32684002,17228.0,17227.0,0.0027027]
[1673254687219,4.38498834,17228.0,17227.0,0.0027027]
[1673254689732,4.55378834,17228.0,17227.0,0.0027027]
[1673254689986,5.14042749,17228.0,17227.0,0.0027027]
[1673254690972,5.08227917,17228.0,17227.0,0.0027027]
[1673254691216,5.3553946,17228.0,17227.0,0.0027027]
[1673254691461,5.6750784,17228.0,17227.0,0.0027027]
[1673254691711,5.8438784,17228.0,17227.0,0.0027027]
[1673254692476,5.58234292,17228.0,17227.0,0.0027027]
[1673254695225,5.41354292,17228.0,17227.0,0.0027027]
[1673254695477,4.82690377,17228.0,17227.0,0.0027027]
[1673254696217,4.55378834,17228.0,17227.0,0.0027027]
[1673254698669,3.55378834,17228.0,17227.0,0.0027027]
[1673254698910,4.18219402,17228.0,17227.0,0.0027027]
[1673254699914,4.1240457,17228.0,17227.0,0.0027027]
[1673254700902,4.18219402,17228.0,17227.0,0.0027027]
[1673254702119,3.87217411,17228.0,17227.0,0.0027027]
[1673254702400,3.01434348,17228.0,17227.0,0.0027027]
[1673254702977,2.82019516,17228.0,17227.0,0.0007027]
[1673254703126,2.95619516,17228.0,17227.0,0.0027027]
[1673254704863,3.01434348,17228.0,17227.0,0.0027027]
[1673254706601,3.01434348,17228.0,17227.0,0.00261844]
[1673254707864,2.95619516,17228.0,17227.0,0.00261844]
[1673254708896,3.01434348,17228.0,17227.0,0.00261844]
[1673254711527,3.87217411,17228.0,17227.0,0.00261844]
[1673254711780,4.11684079,17228.0,17227.0,0.00261844]
[1673254712272,3.87217411,17228.0,17227.0,0.00261844]
[1673254713026,3.01434348,17228.0,17227.0,0.00261844]
[1673254713780,5.58868498,17228.0,17227.0,0.00261844]
[1673254714023,5.35100709,17228.0,17227.0,0.00261844]
[1673254714526,4.76629058,17228.0,17227.0,0.00261844]
[1673254714777,4.82698158,17228.0,17227.0,0.00261844]
[1673254715036,5.74054586,17228.0,17227.0,0.00261844]
[1673254716291,5.42085871,17228.0,17227.0,0.00261844]
[1673254717552,5.42087871,17228.0,17227.0,0.00261844]
[1673254718074,6.45064807,17228.0,17227.0,0.00261844]
[1673254719597,6.17753395,17228.0,17227.0,0.00261844]
[1673254719851,6.17753395,17228.0,17226.0,0.00352867]
[1673254719852,0.4,17227.0,17226.0,0.00352867]
[1673254720097,3.93109052,17227.0,17226.0,0.00352867]
[1673254720349,3.97972159,17227.0,17226.0,0.00352867]
[1673254720593,3.76299219,17227.0,17226.0,0.00352867]
[1673254721093,4.76512567,17227.0,17226.0,2.867e-05]
[1673254721347,0.36705533,17223.0,17217.0,0.60524663]
[1673254721604,1.24516741,17219.0,17217.0,0.60524663]
[1673254721860,2.35664922,17219.0,17217.0,0.60524663]
[1673254722115,2.65549222,17219.0,17217.0,0.00636859]
[1673254722397,3.53277569,17219.0,17217.0,0.00636859]
[1673254722635,3.01635265,17219.0,17217.0,0.00636859]
[1673254722916,3.5517663,17219.0,17217.0,0.00636859]
[1673254723421,3.66241798,17219.0,17217.0,0.00636859]
[1673254723650,4.07793974,17219.0,17217.0,0.00636859]
[1673254723907,4.51889481,17219.0,17217.0,0.00636859]
[1673254724159,4.24533974,17219.0,17217.0,0.00636859]
[1673254724917,3.83426804,17219.0,17217.0,0.00636859]
[1673254725162,4.10753577,17219.0,17217.0,0.00636859]
[1673254725651,4.04938745,17219.0,17217.0,0.00636859]
[1673254725913,4.10753577,17219.0,17217.0,0.00636859]
[1673254726166,5.00206433,17219.0,17217.0,0.00636859]
[1673254726412,5.59594146,17219.0,17217.0,0.00636859]
[1673254726658,5.01055999,17219.0,17217.0,0.00636859]
[1673254726897,4.95241167,17219.0,17217.0,0.00636859]
[1673254728097,5.53740864,17219.0,17217.0,0.00636859]
[1673254728832,4.77613151,17219.0,17217.0,0.00636859]
[1673254729079,4.19113454,17219.0,17217.0,0.00636859]
[1673254729324,3.8337611,17219.0,17217.0,0.00636859]
[1673254729606,3.88210988,17219.0,17217.0,0.00636859]
[1673254729856,3.88214324,17219.0,17217.0,0.00636859]
[1673254730104,3.82926337,17219.0,17217.0,0.00636859]
[1673254730366,4.1867926,17219.0,17217.0,0.00636859]
[1673254730877,4.12864428,17219.0,17217.0,0.00636859]
[1673254731404,3.77111505,17219.0,17217.0,0.00636859]
[1673254731696,3.25134628,17219.0,17217.0,0.00636859]
[1673254731943,3.77111505,17219.0,17217.0,0.00636859]
[1673254732214,3.3094946,17219.0,17217.0,0.00636859]
[1673254733481,3.55959424,17219.0,17217.0,0.00636859]
[1673254733949,3.25134628,17219.0,17217.0,0.00636859]
[1673254734193,3.68416318,17219.0,17217.0,0.00636859]
[1673254734679,3.6841592,17219.0,17217.0,0.00636859]
[1673254735168,3.6841792,17219.0,17217.0,0.00636859]
[1673254735428,3.25136628,17219.0,17217.0,0.00636859]
[1673254735681,3.3937725,17219.0,17217.0,0.00636859]
[1673254736187,4.2689105,17219.0,17217.0,0.00636859]
[1673254736436,4.82426833,17219.0,17217.0,0.00636859]
[1673254736680,5.13341934,17219.0,17217.0,0.00636859]
[1673254736949,5.13333121,17219.0,17217.0,0.00636859]
[1673254737942,4.12374588,17219.0,17217.0,0.00636859]
[1673254738200,3.60397711,17219.0,17217.0,0.00636859]
[1673254738736,3.2948261,17219.0,17217.0,0.00636859]
[1673254738976,3.35297442,17219.0,17217.0,0.00636859]
[1673254740181,3.78563915,17219.0,17217.0,0.00636859]
[1673254741437,3.5123722,17219.0,17217.0,0.00636859]
[1673254743195,3.07970747,17219.0,17217.0,0.00636859]
[1673254743436,3.51237433,17219.0,17217.0,0.00636859]
[1673254744197,3.85858625,17219.0,17217.0,0.00636859]
[1673254744460,3.45422601,17219.0,17217.0,0.00636859]
[1673254744965,3.51237433,17219.0,17217.0,0.00636859]
[1673254745987,3.45422601,17219.0,17217.0,0.00636859]
[1673254746234,3.33071016,17219.0,17217.0,0.00636859]
[1673254747003,3.76363419,17219.0,17217.0,0.00636859]
[1673254747269,3.33071016,17219.0,17217.0,0.00636859]
[1673254748029,3.38885848,17219.0,17217.0,0.00636859]
[1673254749019,3.607014,17219.0,17217.0,0.00636859]
[1673254749768,3.02155915,17219.0,17217.0,0.00636859]
[1673254750026,2.91090747,17219.0,17217.0,0.00636859]
[1673254751033,3.34431569,17219.0,17217.0,0.00636859]
[1673254751279,2.91090747,17219.0,17217.0,0.00636859]
[1673254752032,3.37252792,17219.0,17217.0,0.00636859]
[1673254752244,2.79206815,17219.0,17217.0,0.00636859]
[1673254752752,3.31183692,17219.0,17217.0,0.00636859]
[1673254753058,3.36998524,17219.0,17217.0,0.00636859]
[1673254753592,2.85021647,17219.0,17217.0,0.00636859]
[1673254754079,3.36998524,17219.0,17217.0,0.00636859]
[1673254754587,3.28090571,17219.0,17217.0,0.00636859]
[1673254756025,2.81928526,17219.0,17217.0,0.00636859]
[1673254757745,3.40428223,17219.0,17217.0,0.00636859]
[1673254760351,3.26047422,17219.0,17217.0,0.00636859]
[1673254760571,3.68070123,17219.0,17217.0,0.00636859]
[1673254760815,3.26047422,17219.0,17217.0,0.00636859]
[1673254761548,3.5380269,17219.0,17217.0,0.00636859]
[1673254761805,3.26047422,17219.0,17217.0,0.00636859]
[1673254762046,3.2023259,17219.0,17217.0,0.00636859]
[1673254763063,3.26047422,17219.0,17217.0,0.00636859]
[1673254763330,3.53840072,17219.0,17217.0,0.00636859]
[1673254763589,5.53940983,17219.0,17217.0,0.00636859]
[1673254764094,5.53440983,17219.0,17217.0,0.00636859]
[1673254766356,4.9689672,17219.0,17217.0,0.00636859]
[1673254767098,4.97454191,17219.0,17217.0,0.00636859]
[1673254768096,4.83854191,17219.0,17217.0,0.00636859]
[1673254768351,4.97454191,17219.0,17217.0,0.00636859]
[1673254768598,4.70127756,17219.0,17217.0,0.00636859]
[1673254768844,2.80729186,17218.0,17217.0,0.00636859]
[1673254769098,1.011,17217.0,17216.0,0.00020846]
[1673254769344,4.11644172,17217.0,17216.0,0.00020846]
[1673254769590,4.71881994,17217.0,17216.0,0.00020846]
[1673254769839,4.96881994,17217.0,17216.0,0.00020846]
[1673254770355,4.65694172,17217.0,17216.0,0.00020846]
[1673254770601,5.25081885,17217.0,17216.0,0.00020846]
[1673254770862,3.22097928,17217.0,17216.0,0.00020846]
[1673254771118,2.857642,17217.0,17216.0,0.00020846]
[1673254771377,3.29833538,17217.0,17216.0,0.00020846]
[1673254772373,2.67883538,17217.0,17216.0,0.00020846]
[1673254772631,1.547642,17217.0,17216.0,0.33700846]
[1673254772882,2.13543999,17217.0,17216.0,0.33700846]
[1673254773128,1.838062,17217.0,17216.0,0.33700846]
[1673254773393,2.42586063,17217.0,17216.0,0.33700846]
[1673254773641,1.41861963,17217.0,17216.0,0.33700846]
[1673254773895,1.40195298,17217.0,17216.0,0.33700846]
[1673254774140,1.38861966,17217.0,17216.0,0.33700846]
[1673254774387,1.52461966,17217.0,17216.0,0.33800846]
[1673254775907,1.82461966,17217.0,17216.0,0.33800846]
[1673254776167,1.52461966,17217.0,17216.0,0.33800846]
[1673254776440,0.386,17217.0,17216.0,0.70151646]
[1673254776669,0.97379863,17217.0,17216.0,0.70151646]
[1673254776917,0.386,17217.0,17216.0,0.70151646]
[1673254777706,0.686,17217.0,17216.0,0.70151646]
[1673254777945,1.27379863,17217.0,17216.0,0.70151646]
[1673254778188,1.85461963,17217.0,17216.0,0.70151646]
[1673254778449,1.266821,17217.0,17216.0,0.70151646]
[1673254779194,1.130821,17217.0,17216.0,0.70051646]
[1673254779449,1.265821,17217.0,17216.0,0.33800846]
[1673254779684,1.130821,17217.0,17216.0,0.33700846]
[1673254779928,1.266821,17217.0,17216.0,0.33800846]
[1673254780144,1.130821,17217.0,17216.0,0.33700846]
[1673254780316,1.265821,17217.0,17216.0,0.33800846]
[1673254780631,1.130821,17217.0,17216.0,0.33700846]
[1673254780842,1.266821,17217.0,17216.0,0.33800846]
[1673254781452,1.401821,17217.0,17216.0,0.33900846]
[1673254781845,2.57044063,17217.0,17216.0,0.33900846]
[1673254782296,2.29944063,17217.0,17216.0,0.33700846]
[1673254783824,1.711642,17217.0,17216.0,0.00020846]
[1673254784081,1.847642,17217.0,17216.0,0.00120846]
[1673254784305,1.847642,17217.0,17216.0,0.00020846]
[1673254784306,1.711642,17217.0,17216.0,0.00020846]
[1673254786047,1.847642,17217.0,17216.0,0.00120846]
[1673254787031,2.138052,17217.0,17216.0,0.00120846]
[1673254788297,2.58971265,17217.0,17216.0,0.00020846]
[1673254788536,2.138052,17217.0,17216.0,0.00120846]
[1673254793236,2.146552,17217.0,17216.0,0.00120846]
[1673254794182,2.4192892,17217.0,17216.0,0.00120846]
[1673254795173,2.4193192,17217.0,17216.0,0.00120846]
[1673254796621,2.64626752,17217.0,17216.0,0.00120846]
[1673254797123,2.5881192,17217.0,17216.0,0.00120846]
[1673254798136,2.315382,17217.0,17216.0,0.00120846]
[1673254798633,2.315382,17217.0,17216.0,0.00110157]
[1673254800395,0.4,17216.0,17212.0,2.74466307]
[1673254800601,0.52235996,17213.0,17212.0,2.74466307]
[1673254800882,1.06003785,17213.0,17212.0,2.74466307]
[1673254801116,0.82235996,17213.0,17212.0,2.74466307]
[1673254801353,0.81795296,17213.0,17212.0,2.74466307]
[1673254801623,1.06795296,17213.0,17212.0,2.74466307]
[1673254802650,1.06795296,17213.0,17212.0,2.74566307]
[1673254802900,1.09895296,17213.0,17212.0,2.74766307]
[1673254803404,0.281,17213.0,17212.0,2.74766307]
[1673254803898,0.7162872,17213.0,17212.0,2.74766307]
[1673254804147,0.7162885,17213.0,17212.0,3.27847107]
[1673254804395,0.281,17213.0,17212.0,3.27847107]
[1673254806841,0.71627948,17213.0,17212.0,3.27847107]
[1673254807092,0.281,17213.0,17212.0,2.91496307]
[1673254807339,0.281,17213.0,17212.0,3.27847107]
[1673254808112,0.71634597,17213.0,17212.0,3.27847107]
[1673254808354,0.281,17213.0,17212.0,3.27847107]
[1673254808605,0.281,17213.0,17212.0,2.91496307]
[1673254809133,0.71634498,17213.0,17212.0,2.91496307]
[1673254809408,0.71634498,17213.0,17212.0,3.27847107]
[1673254809648,0.71634498,17213.0,17212.0,3.63724411]
[1673254809899,1.0647434,17213.0,17212.0,4.27871192]
[1673254810649,1.0647434,17213.0,17212.0,3.91993888]
[1673254810891,0.71634498,17213.0,17212.0,3.91993888]
[1673254814368,0.281,17213.0,17212.0,3.91993888]
[1673254814610,0.71653515,17213.0,17212.0,3.91993888]
[1673254814863,1.06496087,17213.0,17212.0,3.91993888]
[1673254815868,0.71653515,17213.0,17212.0,3.91993888]
[1673254816124,1.0649629,17213.0,17212.0,3.91993888]
[1673254816436,1.0649629,17213.0,17212.0,4.27871192]
[1673254816961,0.89075064,17213.0,17212.0,4.27871192]
[1673254817698,1.0649629,17213.0,17212.0,3.91993888]
[1673254817948,1.32630161,17213.0,17212.0,3.91993888]
[1673254818196,0.89076646,17213.0,17212.0,4.27871192]
[1673254818957,1.32630161,17213.0,17212.0,3.91993888]
[1673254819202,1.0339629,17213.0,17212.0,3.91693888]
[1673254820118,0.68553515,17213.0,17212.0,3.91693888]
[1673254821067,0.71653515,17213.0,17212.0,3.91893888]
[1673254822567,0.71653515,17213.0,17212.0,3.91882214]
[1673254825753,0.71653515,17213.0,17212.0,3.75002214]
[1673254826506,0.71653515,17213.0,17212.0,3.38651414]
[1673254828103,0.7166786,17213.0,17212.0,3.38651414]
[1673254830451,1.06523234,17213.0,17212.0,3.75002214]
[1673254830938,0.7166786,17213.0,17212.0,3.75002214]
[1673254831481,1.06524182,17213.0,17212.0,3.75002214]
[1673254831989,1.06524182,17213.0,17212.0,4.10879518]
[1673254832714,0.89097921,17213.0,17212.0,4.10879518]
[1673254833237,1.03424182,17213.0,17212.0,4.10679518]
[1673254833482,1.04324182,17213.0,17212.0,4.11879518]
[1673254833736,0.86896047,17213.0,17212.0,4.11879518]
[1673254834423,0.85996047,17213.0,17212.0,4.10679518]
[1673254834673,1.06524182,17213.0,17212.0,4.10879518]
[1673254834929,1.03424182,17213.0,17212.0,4.10679518]
[1673254835164,1.04324182,17213.0,17212.0,4.11879518]
[1673254835449,1.30464015,17213.0,17212.0,4.11879518]
[1673254835699,1.04324182,17213.0,17212.0,4.11879518]
[1673254835941,1.30464244,17213.0,17212.0,4.11879518]
[1673254836190,1.03424182,17213.0,17212.0,4.10679518]
[1673254836894,1.04324182,17213.0,17212.0,4.11879518]
[1673254837107,1.03424182,17213.0,17212.0,4.10679518]
[1673254837359,1.04324182,17213.0,17212.0,3.76002214]
[1673254837611,1.03424182,17213.0,17212.0,3.74802214]
[1673254837850,1.04324182,17213.0,17212.0,4.11879518]
[1673254838104,1.03424182,17213.0,17212.0,4.10679518]
[1673254838356,0.85998597,17213.0,17212.0,4.68778518]
[1673254838858,0.42416617,17213.0,17212.0,5.43757518]
[1673254839100,0.42416617,17213.0,17212.0,5.44957518]
[1673254839101,0.69458892,17213.0,17212.0,5.44957518]
[1673254839351,0.42416617,17213.0,17212.0,5.43757518]
[1673254839642,0.43316617,17213.0,17212.0,5.44957518]
[1673254839862,0.42416617,17213.0,17212.0,5.43757518]
[1673254840108,0.43316617,17213.0,17212.0,5.44957518]
[1673254840361,0.42416617,17213.0,17212.0,5.43757518]
[1673254840612,0.24989328,17213.0,17212.0,5.60637518]
[1673254840831,0.25889328,17213.0,17212.0,5.61837518]
[1673254841060,0.25889328,17213.0,17212.0,5.60600911]
[1673254842067,0.26789328,17213.0,17212.0,5.61800911]
[1673254842308,0.24989328,17213.0,17212.0,5.60600911]
[1673254842576,0.25889328,17213.0,17212.0,5.61800911]
[1673254842818,0.24989328,17213.0,17212.0,5.60600911]
[1673254843069,0.25889328,17213.0,17212.0,5.61800911]
[1673254843807,0.24989328,17213.0,17212.0,5.60600911]
[1673254844053,0.25889328,17213.0,17212.0,5.61800911]
[1673254845054,0.24989328,17213.0,17212.0,5.60600911]
[1673254846299,0.26489328,17213.0,17212.0,5.61800911]
[1673254847682,0.24989328,17213.0,17212.0,5.60600911]
[1673254847964,0.26389328,17213.0,17212.0,5.61800911]
[1673254865806,0.26389328,17213.0,17212.0,5.25923607]
[1673254866314,0.26389328,17213.0,17212.0,5.61800911]
[1673254866813,0.26389328,17213.0,17212.0,5.25923607]
[1673254867831,0.26389328,17213.0,17212.0,5.25913353]
[1673254868312,0.43816617,17213.0,17212.0,5.25913353]
[1673254869323,0.43816617,17213.0,17212.0,5.61790657]
[1673254869575,0.43816617,17213.0,17212.0,4.11276572]
[1673254869825,1.10606681,17213.0,17212.0,3.74925772]
[1673254870080,0.73269328,17213.0,17212.0,2.58727772]
[1673254870329,0.43269328,17213.0,17212.0,2.58727772]
[1673254870575,0.41869328,17213.0,17212.0,2.57527772]
[1673254870818,0.41869328,17213.0,17212.0,2.58727772]
[1673254870819,0.43269328,17213.0,17212.0,2.58727772]
[1673254871077,0.73269328,17213.0,17212.0,2.58727772]
[1673254871323,0.43269328,17213.0,17212.0,2.58727772]
[1673254871822,0.73269328,17213.0,17212.0,2.58727772]
[1673254872060,1.08109328,17213.0,17212.0,2.58727772]
[1673254872305,1.60344566,17213.0,17212.0,2.58727772]
[1673254872807,1.08109328,17213.0,17212.0,2.58727772]
[1673254873289,1.60344566,17213.0,17212.0,2.58727772]
[1673254873583,2.56497655,17213.0,17212.0,2.58727772]
[1673254873836,2.24254998,17213.0,17212.0,2.58727772]
[1673254874082,2.18440166,17213.0,17212.0,2.58727772]
[1673254874613,2.17040166,17213.0,17212.0,2.57527772]
[1673254874872,2.30540166,17213.0,17212.0,2.57627772]
[1673254876815,1.78304928,17213.0,17212.0,2.57627772]
[1673254880285,2.65180137,17213.0,17212.0,2.57627772]
[1673254880562,3.17418783,17213.0,17212.0,2.57627772]
[1673254880798,2.36400528,17213.0,17212.0,2.57627772]
[1673254883331,2.7984599,17213.0,17212.0,2.57627772]
[1673254884862,2.84599981,17213.0,17212.0,2.57627772]
[1673254885135,3.14599981,17213.0,17212.0,2.57627772]
[1673254885616,2.56504381,17213.0,17212.0,2.57627772]
[1673254885928,2.26504381,17213.0,17212.0,2.57627772]
[1673254886374,2.56504381,17213.0,17212.0,2.57627772]
[1673254887864,2.26504381,17213.0,17212.0,2.57627772]
[1673254888126,2.5257174,17213.0,17212.0,2.57619925]
[1673254888420,2.09126286,17213.0,17212.0,2.57619925]
[1673254888634,2.26504381,17213.0,17212.0,2.57619925]
[1673254890142,2.56504381,17213.0,17212.0,2.57619925]
[1673254890383,2.26504381,17213.0,17212.0,2.57619925]
[1673254890598,2.56504381,17213.0,17212.0,2.57619925]
[1673254892388,2.26504381,17213.0,17212.0,2.57619925]
[1673254892632,1.9175039,17213.0,17212.0,2.57619925]
[1673254892892,2.5651453,17213.0,17212.0,2.57619925]
[1673254893151,2.2175039,17213.0,17212.0,2.57619925]
[1673254893406,1.51539103,17213.0,17212.0,2.57619925]
[1673254897468,1.4677479,17213.0,17212.0,2.57619925]
[1673254899019,1.1677479,17213.0,17212.0,2.57619925]
[1673254900300,1.03329328,17213.0,17212.0,2.57619925]